bitfinex/quotes_BTCUSD_20251217
["timestamp","ask_amount","ask_price","bid_price","bid_amount"]
[1765932306301,2.09424911,87607.0,87606.0,94.71709647]
[1765932310277,2.02464911,87607.0,87606.0,94.71709647]
[1765932311326,2.06541322,87607.0,87606.0,94.71709647]
[1765932311511,2.02464911,87607.0,87606.0,94.71709647]
[1765932312105,1.97742911,87607.0,87606.0,94.71709647]
[1765932313064,1.95938911,87607.0,87606.0,94.71709647]
[1765932313268,1.97742911,87607.0,87606.0,94.71709647]
[1765932313412,2.01819633,87607.0,87606.0,94.71709647]
[1765932313606,2.00015633,87607.0,87606.0,94.71709647]
[1765932313831,1.62166833,87607.0,87606.0,94.82275647]
[1765932314030,1.64598331,87607.0,87606.0,94.82275647]
[1765932314232,1.7856052,87607.0,87606.0,94.82275647]
[1765932314644,1.7786052,87607.0,87606.0,94.82275647]
[1765932315037,0.6765602,87607.0,87606.0,94.82275647]
[1765932315373,0.64598331,87607.0,87606.0,94.82275647]
[1765932315584,0.64198331,87607.0,87606.0,94.82275647]
[1765932315793,0.62394331,87607.0,87606.0,94.82275647]
[1765932315974,0.64198331,87607.0,87606.0,94.82275647]
[1765932316194,0.63898331,87607.0,87606.0,94.82275647]
[1765932316390,0.64098331,87607.0,87606.0,94.82275647]
[1765932316798,0.63898331,87607.0,87606.0,94.82275647]
[1765932316950,0.63998331,87607.0,87606.0,94.82275647]
[1765932317360,0.64298331,87607.0,87606.0,94.82275647]
[1765932317766,0.35466114,87607.0,87606.0,94.82275647]
[1765932317968,0.06396114,87607.0,87606.0,94.82275647]
[1765932318197,0.031646,87607.0,87606.0,94.82275647]
[1765932318354,0.02104,87607.0,87606.0,94.82275647]
[1765932318774,0.01904,87607.0,87606.0,94.82275647]
[1765932319260,0.02004,87607.0,87606.0,94.82275647]
[1765932319460,0.02104,87607.0,87606.0,94.82275647]
[1765932319710,0.02004,87607.0,87606.0,94.82275647]
[1765932320411,0.01804,87607.0,87606.0,94.82275647]
[1765932320610,0.01804,87607.0,87606.0,94.82375647]
[1765932325679,0.13187051,87607.0,87606.0,94.82375647]
[1765932326369,0.13187051,87607.0,87606.0,94.82275647]
[1765932326755,0.13187051,87607.0,87606.0,94.82375647]
[1765932327102,0.01804,87607.0,87606.0,94.82375647]
[1765932327306,0.01804,87607.0,87606.0,94.82275647]
[1765932327462,0.01804,87607.0,87606.0,94.82375647]
[1765932332482,0.13187051,87607.0,87606.0,94.82375647]
[1765932332685,0.01804,87607.0,87606.0,94.82375647]
[1765932335732,0.2397038,87609.0,87608.0,0.1149]
[1765932335953,0.2683461,87609.0,87608.0,0.1149]
[1765932337343,0.38217661,87609.0,87608.0,0.1149]
[1765932340568,0.2683461,87609.0,87608.0,0.1149]
[1765932342815,0.0286423,87609.0,87608.0,0.1149]
[1765932346850,0.0286423,87609.0,87608.0,0.14929]
[1765932351984,0.0106023,87609.0,87608.0,0.14929]
[1765932352190,0.0286423,87609.0,87608.0,0.14929]
[1765932358040,0.0286423,87609.0,87608.0,0.29869]
[1765932363031,0.0106023,87609.0,87608.0,0.29869]
[1765932363236,0.0106023,87616.0,87615.0,0.37756141]
[1765932363453,0.0106023,87623.0,87622.0,0.37189317]
[1765932363632,0.01804,87623.0,87622.0,0.37189317]
[1765932363840,0.0286423,87623.0,87622.0,0.37189317]
[1765932364154,0.01804,87623.0,87622.0,0.37189317]
[1765932365164,0.01141187,87628.0,87627.0,0.11398]
[1765932365393,0.02945187,87628.0,87627.0,0.11398]
[1765932365573,0.02869164,87628.0,87627.0,0.11398]
[1765932366402,0.02869164,87628.0,87627.0,0.11298]
[1765932366787,0.02969164,87628.0,87627.0,0.11298]
[1765932367203,0.03069164,87628.0,87627.0,0.11298]
[1765932385174,0.01265164,87628.0,87627.0,0.11298]
[1765932385385,0.03069164,87628.0,87627.0,0.11298]
[1765932387692,0.03068881,87628.0,87627.0,0.11298]
[1765932390591,0.25892635,87628.0,87627.0,0.11298]
[1765932394326,0.03068881,87628.0,87627.0,0.11298]
[1765932397162,0.01264881,87628.0,87627.0,0.11298]
[1765932397444,0.03068881,87628.0,87627.0,0.11298]
[1765932399354,0.01264881,87628.0,87627.0,0.11298]
[1765932399553,0.03068881,87628.0,87627.0,0.11298]
[1765932411501,0.002,87628.0,87627.0,0.37626344]
[1765932411852,0.002,87628.0,87627.0,0.22686344]
[1765932412626,0.001,87628.0,87627.0,0.22686344]
[1765932412846,0.00135389,87635.0,87634.0,0.38383192]
[1765932413230,0.00135389,87635.0,87634.0,0.15561]
[1765932413682,0.00135389,87635.0,87634.0,0.38383192]
[1765932414043,0.00135389,87635.0,87634.0,0.38483192]
[1765932417355,0.00135389,87635.0,87634.0,0.49871536]
[1765932418287,0.00135389,87635.0,87634.0,0.49771536]
[1765932419712,0.00235389,87635.0,87634.0,0.49971536]
[1765932422538,0.00235389,87635.0,87634.0,0.38583192]
[1765932429338,0.00235389,87635.0,87634.0,0.53523192]
[1765932436806,0.23218607,87635.0,87634.0,0.30701]
[1765932437162,0.24283435,87635.0,87634.0,0.30701]
[1765932438995,0.29986427,87635.0,87634.0,0.30701]
[1765932440836,0.51898444,87610.0,87609.0,0.03631]
[1765932441040,0.22829225,87607.0,87606.0,94.71709647]
[1765932441240,0.35277104,87607.0,87606.0,94.71709647]
[1765932441434,0.38708363,87607.0,87606.0,94.71709647]
[1765932441592,0.38708363,87607.0,87606.0,94.79104647]
[1765932442301,0.38808363,87607.0,87606.0,94.79104647]
[1765932444319,0.37743535,87607.0,87606.0,94.79104647]
[1765932453620,0.03531259,87607.0,87606.0,94.79104647]
[1765932453817,0.01904,87607.0,87606.0,94.79104647]
[1765932455321,0.24733225,87607.0,87606.0,94.79104647]
[1765932456059,0.01904,87607.0,87606.0,94.79104647]
[1765932459043,0.01904,87607.0,87606.0,94.94044647]
[1765932462021,0.01904,87607.0,87606.0,95.16874133]
[1765932462800,1.70027098,87607.0,87606.0,94.71709647]
[1765932463006,3.72470849,87607.0,87606.0,94.71709647]
[1765932463229,3.75902779,87607.0,87606.0,94.71709647]
[1765932463450,3.73315452,87607.0,87606.0,94.71709647]
[1765932463607,3.73215452,87607.0,87606.0,94.71709647]
[1765932463811,3.76281501,87607.0,87606.0,94.70966228]
[1765932464035,3.73415452,87607.0,87606.0,94.70966228]
[1765932464349,3.73715452,87607.0,87606.0,94.70966228]
[1765932464549,3.73215452,87607.0,87606.0,94.70966228]
[1765932464959,3.73615452,87607.0,87606.0,94.70966228]
[1765932465148,3.74015452,87607.0,87606.0,94.70966228]
[1765932465357,3.74015452,87607.0,87606.0,94.6985107]
[1765932467599,2.03285252,87607.0,87606.0,94.6985107]
[1765932468410,2.07373317,87607.0,87606.0,94.6985107]
[1765932469327,2.07373317,87607.0,87606.0,94.68364211]
[1765932469893,1.96028817,87607.0,87606.0,94.68364211]
[1765932470110,0.82821052,87607.0,87606.0,94.68364211]
[1765932471212,0.77645152,87607.0,87606.0,94.68364211]
[1765932472731,0.77646748,87607.0,87606.0,94.68364211]
[1765932472936,0.75842748,87607.0,87606.0,94.68364211]
[1765932473133,0.77646748,87607.0,87606.0,94.68364211]
[1765932475002,0.95663948,87607.0,87606.0,94.68364211]
[1765932475332,0.95663948,87607.0,87606.0,94.67249145]
[1765932476036,0.93859948,87607.0,87606.0,94.67249145]
[1765932476240,0.95663948,87607.0,87606.0,94.67249145]
[1765932478091,0.85161348,87607.0,87606.0,94.67249145]
[1765932478868,0.85161348,87607.0,87606.0,94.66505757]
[1765932479664,0.74435876,87607.0,87606.0,94.73823757]
[1765932479812,0.45365876,87607.0,87606.0,94.73823757]
[1765932480017,0.42922125,87607.0,87606.0,94.66505757]
[1765932480213,0.83375176,87607.0,87606.0,94.66505757]
[1765932480394,0.56348927,87607.0,87606.0,94.66505757]
[1765932480597,0.82975176,87607.0,87606.0,94.66505757]
[1765932480794,0.85018927,87607.0,87606.0,94.66505757]
[1765932481099,0.85118927,87607.0,87606.0,94.66505757]
[1765932481687,0.85418927,87607.0,87606.0,94.66505757]
[1765932482215,0.85118927,87607.0,87606.0,94.66505757]
[1765932482419,0.85318927,87607.0,87606.0,94.66505757]
[1765932483027,0.72324327,87607.0,87606.0,94.66505757]
[1765932485805,0.68892397,87607.0,87606.0,94.66505757]
[1765932486671,0.68892397,87607.0,87606.0,94.73675757]
[1765932486872,0.68892397,87607.0,87606.0,94.66505757]
[1765932488458,0.68893414,87607.0,87606.0,94.66505757]
[1765932490827,0.68893414,87607.0,87606.0,94.69968757]
[1765932491034,0.68893414,87607.0,87606.0,94.77138757]
[1765932491526,0.68893414,87607.0,87606.0,94.66505757]
[1765932491731,0.80865414,87607.0,87606.0,94.66505757]
[1765932494302,0.56705135,87607.0,87606.0,94.66505757]
[1765932494482,0.60769604,87607.0,87606.0,94.73675757]
[1765932494680,0.57510363,87607.0,87606.0,94.73675757]
[1765932495282,0.68893414,87607.0,87606.0,94.66505757]
[1765932499412,0.7196062,87607.0,87606.0,94.66505757]
[1765932499801,0.68893414,87607.0,87606.0,94.66505757]
[1765932500353,0.7196062,87607.0,87606.0,94.66505757]
[1765932504465,0.68893414,87607.0,87606.0,94.66505757]
[1765932506802,0.68893414,87607.0,87606.0,94.69968757]
[1765932506922,0.68893414,87607.0,87606.0,94.77138757]
[1765932507453,0.68893414,87607.0,87606.0,94.69968757]
[1765932507876,0.68893414,87607.0,87606.0,94.77138757]
[1765932507877,0.71961928,87607.0,87606.0,94.77138757]
[1765932508395,0.68893414,87607.0,87606.0,94.77138757]
[1765932510056,0.68893414,87607.0,87606.0,94.69968757]
[1765932510857,0.68893414,87607.0,87606.0,94.66505757]
[1765932511208,0.70481135,87607.0,87606.0,94.66505757]
[1765932512031,0.63362135,87607.0,87606.0,94.66505757]
[1765932512732,0.70481135,87607.0,87606.0,94.66505757]
[1765932513892,0.70281135,87607.0,87606.0,94.66505757]
[1765932514385,0.70481135,87607.0,87606.0,94.66505757]
[1765932514730,0.70681135,87607.0,87606.0,94.66505757]
[1765932515103,0.70681135,87607.0,87606.0,94.65762383]
[1765932538397,0.58709135,87607.0,87606.0,94.65762383]
[1765932538577,0.66649663,87607.0,87606.0,94.73036383]
[1765932538764,0.67289414,87607.0,87606.0,94.73036383]
[1765932538972,0.69093414,87607.0,87606.0,94.73036383]
[1765932539176,0.69093414,87607.0,87606.0,94.65762383]
[1765932539580,0.73188988,87607.0,87606.0,94.65762383]
[1765932539996,0.69093414,87607.0,87606.0,94.65762383]
[1765932540200,0.73188988,87607.0,87606.0,94.65762383]
[1765932540613,0.69093414,87607.0,87606.0,94.65762383]
[1765932540987,0.67289414,87607.0,87606.0,94.65762383]
[1765932541195,0.73188988,87607.0,87606.0,94.65762383]
[1765932541838,0.69093414,87607.0,87606.0,94.65762383]
[1765932542204,0.73188988,87607.0,87606.0,94.65762383]
[1765932543232,0.61805937,87607.0,87606.0,94.73036383]
[1765932543428,0.57710363,87607.0,87606.0,94.73036383]
[1765932543814,0.63413355,87607.0,87606.0,94.73036383]
[1765932544228,0.57710363,87607.0,87606.0,94.73036383]
[1765932544458,0.55906363,87607.0,87606.0,94.73036383]
[1765932544638,0.57710363,87607.0,87606.0,94.73036383]
[1765932545746,0.57410363,87607.0,87606.0,94.73036383]
[1765932545966,0.57210363,87607.0,87606.0,94.73036383]
[1765932546173,0.57410363,87607.0,87606.0,94.73036383]
[1765932546370,0.57510363,87607.0,87606.0,94.73036383]
[1765932547764,0.55706363,87607.0,87606.0,94.73036383]
[1765932547940,0.55066612,87607.0,87606.0,94.73036383]
[1765932548146,0.57510363,87607.0,87606.0,94.73036383]
[1765932548377,0.55066612,87607.0,87606.0,94.73036383]
[1765932549161,0.53262612,87607.0,87606.0,94.73036383]
[1765932549634,0.30433387,87607.0,87606.0,94.73036383]
[1765932549777,0.03167387,87607.0,87606.0,94.73036383]
[1765932550152,0.02967387,87607.0,87606.0,94.73036383]
[1765932550368,0.01063387,87607.0,87606.0,94.73036383]
[1765932550568,0.02967387,87607.0,87606.0,94.95865869]
[1765932550783,0.0297021,87607.0,87606.0,94.73036383]
[1765932550985,0.0287021,87607.0,87606.0,94.73036383]
[1765932551197,0.0287021,87607.0,87606.0,94.95865869]
[1765932551802,0.01804,87607.0,87606.0,94.95865869]
[1765932552301,0.01804,87607.0,87606.0,94.95965869]
[1765932552656,0.01804,87607.0,87606.0,94.95865869]
[1765932552986,0.01804,87607.0,87606.0,94.96065869]
[1765932556090,0.01804,87607.0,87606.0,94.73236383]
[1765932556634,0.24633225,87607.0,87606.0,94.73236383]
[1765932561632,0.01804,87607.0,87606.0,94.73236383]
[1765932574508,0.41346235,87620.0,87606.0,94.73236383]
[1765932574509,0.01141291,87620.0,87619.0,0.11575]
[1765932574815,0.02945291,87620.0,87619.0,0.11575]
[1765932575023,0.33080382,87620.0,87619.0,0.11575]
[1765932575402,0.04010382,87620.0,87619.0,0.11575]
[1765932575839,0.04110382,87620.0,87619.0,0.11575]
[1765932581629,0.34209671,87617.0,87616.0,0.03483]
[1765932581828,0.35274762,87617.0,87616.0,0.15448]
[1765932582354,0.23891711,87617.0,87616.0,0.15448]
[1765932583866,0.23891711,87617.0,87616.0,0.15548]
[1765932584197,0.23991711,87617.0,87616.0,0.15548]
[1765932584619,0.29694703,87617.0,87616.0,0.15548]
[1765932584816,0.23991711,87617.0,87616.0,0.15548]
[1765932585430,0.29694703,87617.0,87616.0,0.15548]
[1765932585973,0.23991711,87617.0,87616.0,0.15548]
[1765932586519,0.53061711,87617.0,87616.0,0.001]
[1765932586715,0.64444762,87617.0,87616.0,0.001]
[1765932586918,0.66898796,87617.0,87616.0,0.001]
[1765932588911,0.66898796,87617.0,87616.0,0.07374]
[1765932589259,0.66898796,87617.0,87616.0,0.12065]
[1765932594364,0.66898796,87617.0,87616.0,0.04791]
[1765932595392,0.66898796,87617.0,87616.0,0.001]
[1765932598261,0.66898796,87617.0,87616.0,0.12065]
[1765932599346,0.66898796,87617.0,87616.0,0.001]
[1765932600381,0.66898796,87617.0,87616.0,0.12065]
[1765932600601,0.57319745,87617.0,87616.0,0.12065]
[1765932601243,0.66248762,87617.0,87616.0,0.12065]
[1765932601455,0.68702796,87617.0,87616.0,0.04791]
[1765932602168,0.68702796,87617.0,87616.0,0.12065]
[1765932607303,0.721338,87617.0,87616.0,0.12065]
[1765932609759,0.36120129,87617.0,87616.0,0.12065]
[1765932609980,0.32039091,87617.0,87616.0,0.12065]
[1765932611191,0.01165091,87617.0,87616.0,0.12065]
[1765932611397,0.01904,87617.0,87616.0,0.23453344]
[1765932611599,0.01165091,87617.0,87616.0,0.23453344]
[1765932611799,0.01904,87617.0,87616.0,0.23453344]
[1765932612403,0.001,87617.0,87616.0,0.23453344]
[1765932612616,0.001,87617.0,87616.0,0.12065]
[1765932612752,0.01904,87617.0,87616.0,0.12065]
[1765932613523,0.01804,87617.0,87616.0,0.12065]
[1765932613777,0.01804,87617.0,87616.0,0.12165]
[1765932613778,0.01904,87617.0,87616.0,0.12165]
[1765932614647,0.01904,87617.0,87616.0,0.12065]
[1765932614850,0.01904,87617.0,87616.0,0.12165]
[1765932616308,0.01904,87617.0,87616.0,0.27105]
[1765932627378,0.01904,87617.0,87616.0,0.19823]
[1765932627578,0.01904,87617.0,87616.0,0.26797]
[1765932627778,0.2473062,87617.0,87616.0,0.26797]
[1765932627980,0.01904,87617.0,87616.0,0.26797]
[1765932628529,0.01804,87617.0,87616.0,0.11757]
[1765932628966,0.01804,87617.0,87616.0,0.11957]
[1765932629381,0.43321902,87617.0,87616.0,0.003]
[1765932629582,0.46752992,87617.0,87616.0,0.003]
[1765932630241,0.46752992,87617.0,87616.0,0.001]
[1765932630445,0.06844362,87614.0,87613.0,0.11657]
[1765932630648,0.07909213,87614.0,87613.0,0.11657]
[1765932630817,0.02206221,87614.0,87613.0,0.11657]
[1765932631022,0.07909213,87614.0,87613.0,0.11657]
[1765932631223,0.11340303,87614.0,87613.0,0.11657]
[1765932632366,0.11440303,87614.0,87613.0,0.11657]
[1765932633918,0.05737311,87614.0,87613.0,0.11657]
[1765932634482,0.05737311,87614.0,87613.0,0.11847]
[1765932634654,0.11440303,87614.0,87613.0,0.11847]
[1765932635304,0.05737311,87614.0,87613.0,0.11847]
[1765932635469,0.11440303,87614.0,87613.0,0.11847]
[1765932635672,0.11440459,87614.0,87613.0,0.11847]
[1765932635875,0.05737467,87614.0,87613.0,0.11847]
[1765932636231,0.11440459,87614.0,87613.0,0.11847]
[1765932636457,0.05737467,87614.0,87613.0,0.11847]
[1765932636842,0.11440459,87614.0,87613.0,0.11847]
[1765932637951,0.05737467,87614.0,87613.0,0.11847]
[1765932638393,0.11440459,87614.0,87613.0,0.11847]
[1765932639468,0.05737467,87614.0,87613.0,0.11847]
[1765932640192,0.05737467,87614.0,87606.0,94.65762383]
[1765932640193,0.11383051,87607.0,87606.0,94.65762383]
[1765932640367,0.37081283,87607.0,87606.0,94.65762383]
[1765932641468,0.69582597,87607.0,87606.0,94.65962383]
[1765932641668,0.69582597,87607.0,87606.0,94.65862383]
[1765932642593,0.69582597,87607.0,87606.0,94.65762383]
[1765932643006,0.69682597,87607.0,87606.0,94.65762383]
[1765932645292,0.69682597,87607.0,87606.0,94.76197383]
[1765932645499,0.69682597,87607.0,87606.0,94.69200383]
[1765932646441,0.69682597,87607.0,87606.0,94.76197383]
[1765932647997,0.69682597,87607.0,87606.0,94.69200383]
[1765932649592,0.69682597,87607.0,87606.0,94.76197383]
[1765932649790,0.69682597,87607.0,87606.0,94.69200383]
[1765932650211,0.69681507,87607.0,87606.0,94.69200383]
[1765932655744,0.72134817,87607.0,87606.0,94.69200383]
[1765932657360,0.72134817,87607.0,87606.0,94.65762383]
[1765932657566,0.78363758,87607.0,87606.0,94.65762383]
[1765932657985,0.71219758,87607.0,87606.0,94.65762383]
[1765932658566,0.66454758,87607.0,87606.0,94.65762383]
[1765932662306,0.66457092,87607.0,87606.0,94.65762383]
[1765932663306,0.59948872,87607.0,87606.0,94.76197383]
[1765932663506,0.607541,87607.0,87606.0,94.76197383]
[1765932663741,0.66457092,87607.0,87606.0,94.76197383]
[1765932665398,0.589501,87607.0,87606.0,94.76197383]
[1765932665598,0.07050875,87607.0,87606.0,94.99026869]
[1765932665799,0.02970251,87607.0,87606.0,94.99026869]
[1765932665998,0.01904,87607.0,87606.0,95.10415213]
[1765932666404,0.01904,87607.0,87606.0,94.99026869]
[1765932666624,0.01804,87607.0,87606.0,94.99026869]
[1765932667023,0.01804,87607.0,87606.0,94.99326869]
[1765932667499,0.01804,87607.0,87606.0,94.99226869]
[1765932667926,0.01904,87607.0,87606.0,94.99326869]
[1765932668614,0.01904,87607.0,87606.0,95.00325816]
[1765932672617,0.001,87607.0,87606.0,95.00325816]
[1765932675891,0.001,87607.0,87606.0,95.15265816]
[1765932690412,0.001,87607.0,87606.0,95.20267655]
[1765932691414,0.01804,87619.0,87618.0,0.49869703]
[1765932692599,0.01904,87619.0,87618.0,0.49969703]
[1765932693445,0.01904,87619.0,87618.0,0.50269703]
[1765932693709,0.01904,87619.0,87618.0,0.65209703]
[1765932696935,0.01989465,87619.0,87618.0,0.65209703]
[1765932700478,0.01989465,87619.0,87618.0,0.53821359]
[1765932701047,0.01889465,87619.0,87618.0,0.53721359]
[1765932701282,0.01889465,87619.0,87618.0,0.53921359]
[1765932702115,0.01889465,87619.0,87618.0,0.53621359]
[1765932702523,0.01889465,87619.0,87618.0,0.53821359]
[1765932703348,0.01889465,87619.0,87618.0,0.65209703]
[1765932710748,0.01889465,87619.0,87618.0,0.53821359]
[1765932715710,0.01889465,87619.0,87618.0,0.65209703]
[1765932716067,0.01889465,87619.0,87618.0,0.53821359]
[1765932716266,0.01889465,87619.0,87618.0,0.65209703]
[1765932724526,0.01889465,87619.0,87618.0,0.50269703]
[1765932731966,0.01889465,87619.0,87618.0,0.38881359]
[1765932732177,0.01889465,87619.0,87618.0,0.50269703]
[1765932732850,0.01889465,87619.0,87618.0,0.50069703]
[1765932733403,0.00085465,87619.0,87618.0,0.49869703]
[1765932733641,0.00085465,87619.0,87618.0,0.50169703]
[1765932734240,0.00185465,87619.0,87618.0,0.50369703]
[1765932734418,0.00185465,87619.0,87618.0,0.55371542]
[1765932735039,0.00185465,87619.0,87618.0,0.58800954]
[1765932742651,0.01804,87652.0,87651.0,0.38672765]
[1765932742781,0.01804,87652.0,87644.0,0.03564]
[1765932742782,0.23954462,87667.0,87666.0,0.0854]
[1765932742984,0.26984733,87667.0,87666.0,0.15958]
[1765932743189,0.26984733,87667.0,87663.0,0.03667]
[1765932743190,0.22814382,87664.0,87663.0,0.03667]
[1765932743527,0.24040653,87664.0,87663.0,0.11085]
[1765932743727,0.53110653,87664.0,87663.0,0.11085]
[1765932743886,0.53110653,87664.0,87663.0,0.15958]
[1765932744941,0.22815162,87661.0,87660.0,0.03667]
[1765932745119,0.35424484,87661.0,87660.0,0.03667]
[1765932746220,0.343595,87661.0,87660.0,0.03667]
[1765932746812,0.344595,87661.0,87660.0,0.03667]
[1765932747411,0.343595,87661.0,87660.0,0.03667]
[1765932747614,0.344595,87661.0,87660.0,0.03667]
[1765932747943,0.345595,87661.0,87660.0,0.03667]
[1765932748152,0.344595,87661.0,87660.0,0.03667]
[1765932749638,0.345595,87661.0,87660.0,0.03667]
[1765932754975,0.23176449,87661.0,87660.0,0.15715]
[1765932755180,0.23307486,87661.0,87660.0,0.15715]
[1765932757929,0.00492324,87661.0,87660.0,0.15715]
[1765932760561,0.00331037,87661.0,87660.0,0.17083925]
[1765932760747,0.02135037,87661.0,87660.0,0.27103344]
[1765932761593,0.01935037,87661.0,87660.0,0.27103344]
[1765932761831,0.01935037,87661.0,87660.0,0.27203344]
[1765932769201,0.01935037,87661.0,87660.0,0.28911568]
[1765932769421,0.00131037,87661.0,87660.0,0.28911568]
[1765932769838,0.00131037,87661.0,87660.0,0.37341306]
[1765932770196,0.00131037,87661.0,87660.0,0.37241306]
[1765932770391,0.00131037,87661.0,87660.0,0.37441306]
[1765932771600,0.00131037,87661.0,87660.0,0.37241306]
[1765932771799,3.7e-07,87661.0,87660.0,0.32626306]
[1765932772003,3.7e-07,87661.0,87660.0,0.37513306]
[1765932772427,3.7e-07,87661.0,87660.0,0.37413306]
[1765932772630,0.00100037,87661.0,87660.0,0.37813306]
[1765932772857,0.00100037,87661.0,87660.0,0.37713306]
[1765932773259,0.00100037,87661.0,87660.0,0.38013306]
[1765932774231,0.00100037,87661.0,87660.0,0.67083306]
[1765932777363,0.00100037,87661.0,87660.0,0.65375082]
[1765932779466,0.00100037,87661.0,87660.0,0.67083306]
[1765932784894,3.7e-07,87661.0,87660.0,0.67086306]
[1765932788773,0.018,87688.0,87687.0,0.48817742]
[1765932788980,0.018,87688.0,87687.0,0.63757705]
[1765932789605,0.018,87688.0,87687.0,0.52369361]
[1765932790008,0.019,87688.0,87687.0,0.52369361]
[1765932794247,0.01984192,87688.0,87687.0,0.52369361]
[1765932797987,0.02145479,87688.0,87687.0,0.29560963]
[1765932798168,0.03211872,87688.0,87687.0,0.22143963]
[1765932798499,0.14594923,87688.0,87687.0,0.14939963]
[1765932799565,0.14980872,87688.0,87687.0,0.14939963]
[1765932799774,0.26772244,87688.0,87687.0,0.14939963]
[1765932799971,0.55433923,87688.0,87687.0,0.14939963]
[1765932800181,0.57892436,87688.0,87687.0,0.14939963]
[1765932800717,0.01140536,87678.0,87675.0,0.03625]
[1765932800918,0.01140536,87678.0,87674.0,0.14939963]
[1765932800919,0.00161287,87676.0,87674.0,0.14939963]
[1765932801153,0.06930672,87676.0,87674.0,0.14939963]
[1765932801267,0.29742191,87675.0,87674.0,0.14939963]
[1765932801696,0.24039199,87675.0,87674.0,0.14939963]
[1765932801902,0.25839199,87675.0,87674.0,0.14939963]
[1765932802147,0.24772806,87675.0,87674.0,0.14939963]
[1765932802865,0.24772806,87675.0,87674.0,0.27062963]
[1765932803421,0.01961287,87675.0,87674.0,0.27062963]
[1765932804361,0.02061287,87675.0,87674.0,0.27062963]
[1765932804924,0.02061287,87675.0,87674.0,0.14939963]
[1765932805335,0.02161287,87675.0,87674.0,0.14939963]
[1765932806531,0.2281178,87674.0,87673.0,0.11042]
[1765932808166,0.2291178,87674.0,87673.0,0.11042]
[1765932808450,0.2291178,87674.0,87673.0,0.03625]
[1765932808616,0.2291178,87674.0,87673.0,0.11042]
[1765932808814,0.2291178,87674.0,87673.0,0.15748]
[1765932810020,0.001,87674.0,87673.0,0.15748]
[1765932810239,0.019,87674.0,87673.0,0.15748]
[1765932812283,0.01940543,87674.0,87673.0,0.15748]
[1765932821355,0.22813081,87669.0,87668.0,0.03625]
[1765932821560,0.22813601,87667.0,87666.0,0.14969]
[1765932823621,0.23954195,87668.0,87667.0,0.11472]
[1765932823980,0.01140667,87668.0,87667.0,0.11472]
[1765932825298,0.01140667,87668.0,87667.0,0.11572]
[1765932827383,0.02449,87657.0,87640.0,0.22820383]
[1765932827561,0.02449,87657.0,87635.0,0.03497]
[1765932827562,0.63751286,87649.0,87635.0,0.03497]
[1765932827765,0.72975917,87649.0,87648.0,0.02929455]
[1765932827958,0.72975917,87649.0,87632.0,0.00138483]
[1765932827959,0.22822452,87633.0,87632.0,0.00138483]
[1765932828227,0.36646739,87633.0,87632.0,0.00138483]
[1765932828503,0.42349731,87633.0,87632.0,0.00138483]
[1765932828647,0.35155731,87633.0,87632.0,0.00138483]
[1765932828844,0.38585915,87633.0,87632.0,0.00138483]
[1765932829254,0.38585915,87633.0,87632.0,0.00238483]
[1765932829255,0.67655915,87633.0,87632.0,0.00238483]
[1765932829872,0.62986915,87633.0,87632.0,0.00238483]
[1765932830129,0.57283923,87633.0,87632.0,0.00238483]
[1765932830512,0.57283923,87633.0,87632.0,0.00138483]
[1765932830707,0.57383923,87633.0,87632.0,0.00138483]
[1765932831771,0.57483923,87633.0,87632.0,0.00138483]
[1765932831978,0.63186915,87633.0,87632.0,0.00138483]
[1765932832130,0.57483923,87633.0,87632.0,0.00138483]
[1765932832349,0.62152923,87633.0,87632.0,0.00138483]
[1765932832734,0.69346923,87633.0,87632.0,0.00138483]
[1765932837425,0.62152923,87633.0,87632.0,0.00138483]
[1765932838675,0.69346923,87633.0,87632.0,0.00138483]
[1765932839680,0.62152923,87633.0,87632.0,0.00138483]
[1765932840918,0.67855915,87633.0,87632.0,0.00138483]
[1765932841132,0.63186915,87633.0,87632.0,0.00138483]
[1765932842130,0.57483923,87633.0,87632.0,0.00138483]
[1765932842772,0.63186915,87633.0,87632.0,0.00138483]
[1765932843477,0.57483923,87633.0,87632.0,0.00138483]
[1765932847372,0.58542178,87633.0,87632.0,0.00138483]
[1765932849073,0.55111994,87633.0,87632.0,0.00138483]
[1765932850364,0.60814986,87633.0,87632.0,0.00138483]
[1765932850586,0.55111994,87633.0,87632.0,0.00138483]
[1765932854479,0.55115994,87633.0,87632.0,0.12219483]
[1765932855053,0.55115994,87633.0,87632.0,0.05027483]
[1765932855237,0.55115994,87633.0,87632.0,0.00138483]
[1765932857500,0.55123572,87633.0,87632.0,0.00138483]
[1765932857904,0.55123572,87633.0,87632.0,0.05027483]
[1765932858080,0.32139833,87633.0,87632.0,0.12219483]
[1765932858281,0.54962285,87633.0,87632.0,0.00138483]
[1765932858886,0.54862285,87633.0,87632.0,0.07330483]
[1765932859073,0.54762285,87633.0,87632.0,0.12219483]
[1765932859282,0.54762285,87633.0,87632.0,0.12319483]
[1765932860814,0.54762285,87633.0,87632.0,0.12219483]
[1765932861112,0.54862285,87633.0,87632.0,0.00138483]
[1765932861322,0.54962285,87633.0,87632.0,0.00138483]
[1765932861937,0.60665277,87633.0,87632.0,0.00138483]
[1765932862151,0.6311506,87633.0,87632.0,0.00138483]
[1765932863543,0.57573355,87633.0,87632.0,0.00138483]
[1765932863747,0.81088406,87633.0,87632.0,0.00138483]
[1765932864757,0.73750406,87633.0,87632.0,0.00138483]
[1765932867514,0.68956406,87633.0,87632.0,0.00138483]
[1765932867636,0.57573355,87633.0,87632.0,0.00138483]
[1765932868035,0.63276347,87633.0,87632.0,0.00138483]
[1765932868435,0.63276347,87633.0,87632.0,0.07330483]
[1765932868677,0.57573355,87633.0,87632.0,0.07330483]
[1765932868891,0.57573355,87633.0,87632.0,0.00138483]
[1765932869117,0.55123572,87633.0,87632.0,0.00138483]
[1765932869327,0.57573355,87633.0,87632.0,0.00138483]
[1765932869449,0.55123572,87633.0,87632.0,0.00138483]
[1765932870962,0.55123572,87633.0,87632.0,0.12219483]
[1765932872649,0.55123572,87633.0,87632.0,0.00138483]
[1765932873141,0.57573355,87633.0,87632.0,0.00138483]
[1765932874814,0.57573355,87633.0,87632.0,0.12320483]
[1765932875425,0.55123572,87633.0,87632.0,0.12320483]
[1765932879206,0.55124202,87633.0,87632.0,0.12320483]
[1765932879406,0.53158915,87633.0,87632.0,0.12320483]
[1765932879609,0.01266463,87633.0,87632.0,0.12320483]
[1765932879848,0.03070463,87633.0,87632.0,0.12320483]
[1765932880822,0.01266463,87633.0,87632.0,0.12320483]
[1765932881163,0.02004,87633.0,87632.0,0.12320483]
[1765932881323,0.03070463,87633.0,87632.0,0.12320483]
[1765932881566,0.02004,87633.0,87632.0,0.13689845]
[1765932882689,0.01904,87633.0,87632.0,0.13689845]
[1765932882855,0.01904,87633.0,87632.0,0.25078189]
[1765932883209,0.01804,87633.0,87632.0,0.23808827]